[Event "MČR juniorů a juniorek v rapid šachu 2023"]
[Site "Czech Republic"]
[Date "2023.09.24"]
[Round "9.3"]
[White "Vilimek, Vit"]
[Black "Sulc, Jakub"]
[Result "1-0"]
[TimeControl "20 min + 5 sec per move"]
[WhiteFideId "23718218"]
[BlackFideId "394050"]
[WhiteElo "1898"]
[BlackElo "1920"]

1. e4 {[%clk 00:20:09]} {[%emt 00:05:37]} e6 {[%clk 00:20:09]} 2. Nf3 {[%clk
00:20:13]} d5 {[%clk 00:20:11]} {[%emt 00:00:03]} 3. e5 {[%clk 00:20:18]} c5
{[%clk 00:20:15]} 4. b4 {[%clk 00:20:22]} d4 {[%clk 00:19:36]} {[%emt
00:00:44]} 5. c3 {[%clk 00:20:26]} dxc3 {[%clk 00:16:35]} {[%emt 00:03:06]} 6.
bxc5 {[%clk 00:20:29]} cxd2+ {[%clk 00:16:37]} {[%emt 00:00:04]} 7. Bxd2 {[%clk
00:20:33]} {[%emt 00:00:02]} Bxc5 {[%emt 00:00:27]} 8. Nc3 Nh6 {[%clk
00:15:12]} {[%emt 00:01:08]} 9. Ne4 {[%clk 00:20:08]} {[%emt 00:00:35]} Be7
{[%clk 00:15:11]} {[%emt 00:00:05]} 10. Be2 {[%clk 00:18:46]} {[%emt 00:01:27]}
Nf5 {[%clk 00:14:44]} {[%emt 00:00:32]} 11. O-O {[%clk 00:18:49]} {[%emt
00:00:02]} Nc6 {[%clk 00:14:44]} {[%emt 00:00:05]} 12. Qc1 {[%clk 00:16:05]}
{[%emt 00:02:50]} O-O {[%clk 00:12:17]} {[%emt 00:02:32]} 13. Rd1 {[%clk
00:16:00]} {[%emt 00:00:09]} Nfd4 {[%clk 00:04:50]} {[%emt 00:07:33]} 14. Nxd4
{[%clk 00:15:10]} {[%emt 00:00:55]} Qxd4 {[%clk 00:04:36]} {[%emt 00:00:19]} 15.
Ng3 {[%clk 00:13:30]} {[%emt 00:01:45]} Bb4 {[%clk 00:02:17]} {[%emt 00:02:23]}
16. Bxb4 {[%clk 00:10:52]} {[%emt 00:02:44]} Qxb4 {[%clk 00:02:21]} 17. Qg5
{[%clk 00:10:53]} {[%emt 00:00:03]} h6 {[%clk 00:01:04]} {[%emt 00:01:22]} 18.
Qe3 {[%clk 00:08:48]} {[%emt 00:02:10]} Qb6 {[%clk 00:00:45]} {[%emt 00:00:25]}
19. Qe4 {[%clk 00:07:58]} {[%emt 00:00:56]} Qc5 {[%clk 00:00:14]} {[%emt
00:00:35]} 20. Bd3 {[%clk 00:08:01]} {[%emt 00:00:02]} g6 {[%clk 00:00:18]} 21.
Re1 {[%clk 00:05:14]} {[%emt 00:02:52]} Rd8 {[%clk 00:00:22]} 22. Rad1 {[%clk
00:04:02]} {[%emt 00:01:17]} Qd4 {[%clk 00:00:12]} {[%emt 00:00:15]} 23. Bc2
{[%clk 00:04:06]} Qxe4 {[%clk 00:00:15]} {[%emt 00:00:02]} 24. Rxd8+ {[%clk
00:04:10]} Nxd8 {[%clk 00:00:19]} 25. Nxe4 {[%clk 00:04:14]} b6 {[%clk
00:00:13]} {[%emt 00:00:11]} 26. Rd1 {[%clk 00:02:04]} {[%emt 00:02:15]} Bb7
{[%clk 00:00:08]} {[%emt 00:00:10]} 27. Nf6+ {[%clk 00:02:08]} Kg7 {[%clk
00:00:11]} {[%emt 00:00:02]} 28. f4 {[%clk 00:01:52]} {[%emt 00:00:21]} Rc8
{[%clk 00:00:10]} {[%emt 00:00:06]} 29. Bb3 {[%clk 00:01:51]} {[%emt 00:00:06]}
Nc6 {[%clk 00:00:08]} {[%emt 00:00:07]} 30. Rd7 {[%clk 00:01:52]} {[%emt
00:00:04]} Na5 {[%clk 00:00:08]} {[%emt 00:00:05]} 31. Bxe6 {[%clk 00:01:44]}
{[%emt 00:00:13]} Rf8 {[%clk 00:00:08]} {[%emt 00:00:05]} 32. Bb3 {[%clk
00:00:43]} {[%emt 00:01:06]} a6 {[%clk 00:00:09]} {[%emt 00:00:04]} 33. Re7
{[%clk 00:00:39]} {[%emt 00:00:09]} Bc8 {[%clk 00:00:11]} {[%emt 00:00:04]} 34.
Ne8+ {[%clk 00:00:40]} {[%emt 00:00:04]} Kg8 {[%clk 00:00:11]} {[%emt
00:00:04]} 35. Nd6 {[%clk 00:00:41]} {[%emt 00:00:04]} Nxb3 {[%clk 00:00:14]}
{[%emt 00:00:02]} 36. axb3 {[%clk 00:00:41]} {[%emt 00:00:05]} Be6 {[%clk
00:00:16]} {[%emt 00:00:03]} 37. Rb7 {[%clk 00:00:33]} {[%emt 00:00:12]} b5
{[%clk 00:00:18]} {[%emt 00:00:04]} 38. b4 {[%clk 00:00:36]} {[%emt 00:00:02]}
Ra8 {[%clk 00:00:21]} {[%emt 00:00:02]} 39. Ne4 {[%clk 00:00:27]} {[%emt
00:00:14]} Bd5 {[%clk 00:00:23]} {[%emt 00:00:03]} 40. Nf6+ {[%clk 00:00:30]}
{[%emt 00:00:02]} Kg7 {[%clk 00:00:27]} 41. Nxd5 {[%clk 00:00:35]} a5 {[%clk
00:00:31]} {[%emt 00:00:01]} 42. bxa5 {[%clk 00:00:36]} {[%emt 00:00:04]} Rxa5
{[%clk 00:00:35]} 43. Nf6 {[%clk 00:00:38]} {[%emt 00:00:02]} Ra4 {[%clk
00:00:37]} {[%emt 00:00:02]} 44. g3 {[%clk 00:00:40]} {[%emt 00:00:03]} g5
{[%clk 00:00:41]} {[%emt 00:00:02]} 45. Nd5 {[%clk 00:00:38]} {[%emt 00:00:07]}
Kg6 {[%clk 00:00:33]} {[%emt 00:00:13]} 46. Rb6+ {[%clk 00:00:36]} {[%emt
00:00:07]} Kf5 {[%clk 00:00:34]} {[%emt 00:00:04]} 47. Rxb5 {[%clk 00:00:21]}
{[%emt 00:00:20]} Ra2 {[%clk 00:00:31]} {[%emt 00:00:08]} 48. Ne3+ {[%clk
00:00:15]} {[%emt 00:00:11]} Ke4 {[%clk 00:00:35]} {[%emt 00:00:02]} 49. Nf1
{[%clk 00:00:18]} {[%emt 00:00:02]} gxf4 {[%clk 00:00:31]} {[%emt 00:00:08]} 50.
Rb4+ {[%clk 00:00:20]} {[%emt 00:00:03]} Kxe5 {[%clk 00:00:33]} {[%emt
00:00:03]} 51. Rxf4 {[%clk 00:00:25]} f5 {[%clk 00:00:32]} {[%emt 00:00:06]} 52.
Ne3 {[%clk 00:00:23]} {[%emt 00:00:06]} Re2 {[%clk 00:00:32]} {[%emt 00:00:04]}
53. Nxf5 {[%clk 00:00:25]} {[%emt 00:00:04]} Kd5 {[%emt 00:00:06]} 1-0

[Event "MČR juniorů a juniorek v rapid šachu 2023"]
[Site "Czech Republic"]
[Date "2023.09.24"]
[Round "9.4"]
[White "Jun, Rudolf"]
[Black "Garabik, Marek"]
[Result "1-0"]
[TimeControl "20 min + 5 sec per move"]
[WhiteFideId "376612"]
[BlackFideId "23717742"]
[WhiteElo "2151"]
[BlackElo "1787"]

1. e4 {[%clk 00:20:09]} e6 {[%clk 00:20:10]} {[%emt 00:00:02]} 2. d4 {[%clk
00:20:08]} {[%emt 00:00:05]} d5 {[%clk 00:20:14]} 3. Nd2 {[%clk 00:20:12]}
{[%emt 00:00:02]} Nc6 {[%clk 00:20:13]} {[%emt 00:00:06]} 4. Ngf3 {[%clk
00:20:12]} {[%emt 00:00:04]} Nf6 {[%clk 00:20:17]} {[%emt 00:00:01]} 5. Bd3
{[%clk 00:20:07]} {[%emt 00:00:10]} Be7 {[%clk 00:19:44]} {[%emt 00:00:39]} 6.
O-O {[%clk 00:20:03]} {[%emt 00:00:09]} O-O {[%clk 00:19:46]} {[%emt 00:00:03]}
7. c3 {[%clk 00:19:57]} {[%emt 00:00:11]} dxe4 {[%clk 00:19:06]} {[%emt
00:00:45]} 8. Nxe4 {[%clk 00:20:00]} b6 {[%clk 00:19:07]} {[%emt 00:00:04]} 9.
Qc2 {[%clk 00:19:56]} {[%emt 00:00:08]} h6 {[%clk 00:18:49]} {[%emt 00:00:24]}
10. Nxf6+ {[%clk 00:19:48]} {[%emt 00:00:13]} Bxf6 {[%clk 00:18:52]} {[%emt
00:00:01]} 11. Qe2 {[%clk 00:19:52]} Bb7 {[%clk 00:17:36]} {[%emt 00:01:21]} 12.
Qe4 {[%clk 00:19:54]} {[%emt 00:00:04]} Re8 {[%clk 00:16:55]} {[%emt 00:00:47]}
13. b3 {[%clk 00:19:26]} {[%emt 00:00:32]} Kf8 {[%clk 00:15:35]} {[%emt
00:01:25]} 14. Qh7 {[%clk 00:19:06]} {[%emt 00:00:24]} Ke7 {[%clk 00:15:17]}
{[%emt 00:00:24]} 15. Ba3+ {[%clk 00:18:41]} {[%emt 00:00:25]} Kd7 {[%clk
00:15:21]} {[%emt 00:00:01]} 16. d5 {[%clk 00:18:46]} {[%emt 00:00:04]} Ne7
{[%clk 00:13:58]} {[%emt 00:01:28]} 17. Bb5+ {[%clk 00:18:50]} {[%emt
00:00:02]} Kc8 {[%clk 00:13:13]} {[%emt 00:00:50]} 18. Bxe8 {[%clk 00:18:46]}
{[%emt 00:00:09]} Qxe8 {[%clk 00:13:17]} {[%emt 00:00:01]} 19. dxe6 {[%clk
00:17:15]} {[%emt 00:01:36]} Ng6 {[%clk 00:12:34]} {[%emt 00:00:47]} 20. Nd4
{[%clk 00:14:26]} {[%emt 00:02:54]} fxe6 {[%clk 00:11:06]} {[%emt 00:01:34]} 21.
Nxe6 {[%clk 00:12:22]} {[%emt 00:02:08]} Qf7 {[%clk 00:10:04]} {[%emt
00:01:08]} 22. Nf4 {[%clk 00:06:54]} {[%emt 00:05:32]} Be4 {[%clk 00:07:04]}
{[%emt 00:03:06]} 23. f3 {[%clk 00:06:09]} {[%emt 00:00:50]} Bf5 {[%clk
00:06:59]} {[%emt 00:00:09]} 24. g4 {[%clk 00:06:13]} {[%emt 00:00:02]} Nh4
{[%clk 00:06:48]} {[%emt 00:00:15]} 25. gxf5 {[%clk 00:05:55]} {[%emt
00:00:23]} Qe8 {[%clk 00:05:15]} {[%emt 00:01:38]} 26. Ng2 {[%clk 00:05:12]}
{[%emt 00:00:48]} Bxc3 {[%clk 00:03:19]} {[%emt 00:02:02]} 27. Nxh4 {[%clk
00:05:03]} {[%emt 00:00:14]} Bxa1 {[%clk 00:03:11]} {[%emt 00:00:13]} 28. Rxa1
{[%clk 00:04:45]} {[%emt 00:00:22]} Qe3+ {[%clk 00:02:55]} {[%emt 00:00:22]} 29.
Kh1 {[%clk 00:04:48]} {[%emt 00:00:02]} Qg5 {[%clk 00:02:32]} {[%emt 00:00:27]}
30. Qg8+ {[%clk 00:04:43]} {[%emt 00:00:09]} Kb7 {[%clk 00:02:32]} {[%emt
00:00:07]} 31. Qd5+ {[%clk 00:04:46]} {[%emt 00:00:02]} c6 {[%clk 00:02:11]}
{[%emt 00:00:26]} 32. Qf7+ {[%clk 00:04:49]} Ka6 {[%clk 00:02:11]} {[%emt
00:00:05]} 33. Qc4+ {[%clk 00:04:53]} {[%emt 00:00:01]} Kb7 {[%clk 00:02:15]}
{[%emt 00:00:02]} 34. Rg1 {[%clk 00:04:56]} {[%emt 00:00:01]} Qf6 {[%clk
00:01:55]} {[%emt 00:00:25]} 35. Rg6 {[%clk 00:04:27]} {[%emt 00:00:34]} Qa1+
{[%clk 00:01:30]} {[%emt 00:00:30]} 36. Bc1 {[%clk 00:04:25]} {[%emt 00:00:07]}
Rd8 {[%clk 00:00:59]} {[%emt 00:00:36]} 37. Qxc6+ {[%clk 00:04:11]} {[%emt
00:00:19]} Kb8 {[%clk 00:01:03]} {[%emt 00:00:02]} 38. Rg1 {[%clk 00:04:14]}
{[%emt 00:00:02]} Qd4 {[%clk 00:00:27]} {[%emt 00:00:41]} 39. Ng2 {[%clk
00:03:10]} {[%emt 00:01:08]} Rc8 {[%clk 00:00:30]} {[%emt 00:00:02]} 40. Bf4+
{[%clk 00:03:07]} {[%emt 00:00:08]} Qxf4 {[%clk 00:00:23]} {[%emt 00:00:12]} 41.
Qxc8+ {[%clk 00:03:09]} {[%emt 00:00:04]} 1-0

[Event "MČR juniorů a juniorek v rapid šachu 2023"]
[Site "Czech Republic"]
[Date "2023.09.24"]
[Round "9.5"]
[White "Steinbauer, Sebastian"]
[Black "Bezdek, Tomas"]
[Result "0-1"]
[TimeControl "20 min + 5 sec per move"]
[WhiteFideId "399272"]
[BlackFideId "23733551"]
[WhiteElo "1880"]
[BlackElo "1933"]

1. e4 {[%clk 00:20:07]} {[%emt 00:00:03]} e6 {[%clk 00:20:09]} 2. d4 {[%clk
00:20:11]} {[%emt 00:00:02]} d5 {[%clk 00:20:13]} 3. exd5 {[%clk 00:20:15]}
{[%emt 00:00:02]} exd5 {[%clk 00:20:16]} {[%emt 00:00:02]} 4. Bd3 {[%clk
00:20:18]} Nf6 {[%clk 00:20:19]} {[%emt 00:00:02]} 5. Nf3 {[%clk 00:20:13]}
{[%emt 00:00:10]} c5 {[%clk 00:20:23]} 6. c3 {[%clk 00:20:17]} {[%emt
00:00:02]} c4 {[%clk 00:20:27]} 7. Bc2 {[%clk 00:20:21]} Bd6 {[%clk 00:20:27]}
{[%emt 00:00:05]} 8. b3 {[%clk 00:20:08]} {[%emt 00:00:18]} cxb3 {[%clk
00:20:31]} 9. Bxb3 {[%clk 00:20:12]} {[%emt 00:00:01]} O-O {[%clk 00:20:33]}
{[%emt 00:00:03]} 10. O-O {[%clk 00:20:14]} {[%emt 00:00:03]} Qc7 {[%clk
00:19:54]} {[%emt 00:00:44]} 11. Qd3 {[%clk 00:18:26]} {[%emt 00:01:52]} Bg4
{[%clk 00:18:52]} {[%emt 00:01:08]} 12. h3 {[%clk 00:17:58]} {[%emt 00:00:33]}
Bh5 {[%clk 00:18:56]} 13. Re1 {[%clk 00:14:58]} {[%emt 00:03:06]} Nbd7 {[%clk
00:18:47]} {[%emt 00:00:13]} 14. c4 {[%clk 00:13:22]} {[%emt 00:01:42]} Bg6
{[%clk 00:18:11]} {[%emt 00:00:40]} 15. Qf1 {[%clk 00:13:23]} {[%emt 00:00:04]}
dxc4 {[%clk 00:17:58]} {[%emt 00:00:19]} 16. Bxc4 {[%clk 00:12:22]} {[%emt
00:01:06]} Rac8 {[%clk 00:17:31]} {[%emt 00:00:31]} 17. Bb3 {[%clk 00:12:09]}
{[%emt 00:00:18]} Rfe8 {[%clk 00:13:53]} {[%emt 00:03:43]} 18. Rxe8+ {[%clk
00:11:16]} {[%emt 00:00:58]} Rxe8 {[%clk 00:13:55]} {[%emt 00:00:03]} 19. Bb2
{[%clk 00:11:16]} {[%emt 00:00:05]} Nb6 {[%clk 00:11:48]} {[%emt 00:02:13]} 20.
Nc3 {[%clk 00:11:10]} {[%emt 00:00:11]} a6 {[%clk 00:11:31]} {[%emt 00:00:21]}
21. Rc1 {[%clk 00:10:58]} {[%emt 00:00:17]} Qd7 {[%clk 00:11:12]} {[%emt
00:00:24]} 22. Rd1 {[%clk 00:08:53]} {[%emt 00:02:09]} Ne4 {[%clk 00:10:13]}
{[%emt 00:01:04]} 23. Nxe4 {[%clk 00:06:59]} {[%emt 00:02:00]} Bxe4 {[%clk
00:10:15]} {[%emt 00:00:02]} 24. Ne5 {[%clk 00:07:03]} {[%emt 00:00:02]} Bxe5
{[%clk 00:09:18]} {[%emt 00:01:03]} 25. dxe5 {[%clk 00:07:06]} {[%emt
00:00:01]} Qf5 {[%clk 00:08:55]} {[%emt 00:00:28]} 26. Qe2 {[%clk 00:06:34]}
{[%emt 00:00:36]} Bc6 {[%clk 00:08:28]} {[%emt 00:00:33]} 27. Qe3 {[%clk
00:05:04]} {[%emt 00:01:33]} Nd7 {[%clk 00:08:00]} {[%emt 00:00:36]} 28. Re1
{[%clk 00:04:58]} {[%emt 00:00:11]} Nf8 {[%clk 00:07:51]} {[%emt 00:00:14]} 29.
g4 {[%clk 00:03:23]} {[%emt 00:01:40]} Qd7 {[%clk 00:06:21]} {[%emt 00:01:34]}
30. f4 {[%clk 00:03:15]} {[%emt 00:00:14]} Qe7 {[%clk 00:04:08]} {[%emt
00:02:18]} 31. f5 {[%clk 00:02:19]} {[%emt 00:01:01]} Qh4 {[%clk 00:03:50]}
{[%emt 00:00:23]} 32. Kh2 {[%clk 00:01:53]} {[%emt 00:00:30]} Nd7 {[%clk
00:02:50]} {[%emt 00:01:06]} 33. Rf1 {[%clk 00:00:24]} {[%emt 00:01:34]} Nf6
{[%clk 00:02:19]} {[%emt 00:00:35]} 34. Qf4 {[%clk 00:00:09]} {[%emt 00:00:20]}
h5 {[%clk 00:01:51]} {[%emt 00:00:34]} 35. e6 {[%clk 00:00:08]} {[%emt
00:00:06]} Nxg4+ {[%clk 00:01:38]} {[%emt 00:00:18]} 36. Qxg4 {[%clk 00:00:08]}
{[%emt 00:00:06]} hxg4 {[%clk 00:01:30]} {[%emt 00:00:13]} 37. exf7+ {[%clk
00:00:11]} Kh7 {[%clk 00:01:29]} {[%emt 00:00:05]} 38. Kg1 {[%clk 00:00:07]}
{[%emt 00:00:10]} Qg3# {[%clk 00:01:31]} {[%emt 00:00:03]} 0-1

[Event "MČR juniorů a juniorek v rapid šachu 2023"]
[Site "Czech Republic"]
[Date "2023.09.24"]
[Round "9.6"]
[White "Slaby, Matej"]
[Black "Cibulka, Josef"]
[Result "1-0"]
[TimeControl "20 min + 5 sec per move"]
[WhiteFideId "23734876"]
[BlackFideId "23708042"]
[WhiteElo "1922"]
[BlackElo "1922"]

1. e4 {[%clk 00:20:07]} {[%emt 00:00:02]} c5 {[%clk 00:20:08]} {[%emt
00:00:02]} 2. Nf3 {[%clk 00:20:10]} {[%emt 00:00:02]} Nc6 {[%clk 00:20:11]}
{[%emt 00:00:01]} 3. Bb5 {[%clk 00:20:14]} {[%emt 00:00:02]} e6 {[%clk
00:20:12]} {[%emt 00:00:04]} 4. Bxc6 {[%clk 00:20:18]} {[%emt 00:00:02]} bxc6
{[%clk 00:20:15]} 5. O-O {[%clk 00:20:19]} {[%emt 00:00:04]} d5 {[%clk
00:20:13]} {[%emt 00:00:08]} 6. d3 {[%clk 00:20:17]} {[%emt 00:00:06]} Ba6
{[%clk 00:20:06]} {[%emt 00:00:12]} 7. Re1 {[%clk 00:20:03]} {[%emt 00:00:19]}
Nf6 {[%clk 00:20:02]} {[%emt 00:00:09]} 8. e5 {[%clk 00:20:00]} {[%emt
00:00:08]} Nd7 {[%clk 00:20:01]} {[%emt 00:00:05]} 9. Bg5 {[%clk 00:19:55]}
{[%emt 00:00:11]} Be7 {[%clk 00:20:04]} {[%emt 00:00:01]} 10. Bxe7 {[%clk
00:19:52]} {[%emt 00:00:09]} Qxe7 {[%clk 00:20:07]} {[%emt 00:00:02]} 11. Nbd2
{[%clk 00:18:55]} {[%emt 00:01:02]} O-O {[%clk 00:20:00]} {[%emt 00:00:12]} 12.
c4 {[%clk 00:18:47]} {[%emt 00:00:14]} Bb7 {[%clk 00:18:20]} {[%emt 00:01:45]}
13. Rc1 {[%clk 00:18:11]} {[%emt 00:00:41]} f6 {[%clk 00:17:20]} {[%emt
00:01:04]} 14. exf6 {[%clk 00:17:52]} {[%emt 00:00:25]} Qxf6 {[%clk 00:17:20]}
{[%emt 00:00:05]} 15. Qe2 {[%clk 00:17:08]} {[%emt 00:00:48]} Rae8 {[%clk
00:17:12]} {[%emt 00:00:12]} 16. Nb3 {[%clk 00:17:07]} {[%emt 00:00:07]} e5
{[%clk 00:15:32]} {[%emt 00:01:45]} 17. Nfd2 {[%clk 00:15:56]} {[%emt
00:01:16]} Qd6 {[%clk 00:13:16]} {[%emt 00:02:21]} 18. Qe3 {[%clk 00:14:33]}
{[%emt 00:01:28]} d4 {[%clk 00:12:47]} {[%emt 00:00:34]} 19. Qg5 {[%clk
00:13:00]} {[%emt 00:01:38]} Nf6 {[%clk 00:12:28]} {[%emt 00:00:24]} 20. f4
{[%clk 00:11:28]} {[%emt 00:01:37]} exf4 {[%clk 00:10:16]} {[%emt 00:02:17]} 21.
Qxc5 {[%clk 00:11:26]} {[%emt 00:00:08]} Qxc5 {[%clk 00:09:56]} {[%emt
00:00:25]} 22. Nxc5 {[%clk 00:11:29]} {[%emt 00:00:02]} Bc8 {[%clk 00:09:46]}
{[%emt 00:00:14]} 23. Nf3 {[%clk 00:10:46]} {[%emt 00:00:48]} Rd8 {[%clk
00:08:24]} {[%emt 00:01:26]} 24. Nb3 {[%clk 00:07:51]} {[%emt 00:03:01]} Bg4
{[%clk 00:06:41]} {[%emt 00:01:49]} 25. Nfxd4 {[%clk 00:05:15]} {[%emt
00:02:41]} c5 {[%clk 00:06:21]} {[%emt 00:00:24]} 26. Nc6 {[%clk 00:05:16]}
{[%emt 00:00:03]} Rxd3 {[%clk 00:06:03]} {[%emt 00:00:23]} 27. Rc2 {[%clk
00:04:11]} {[%emt 00:01:11]} f3 {[%clk 00:03:36]} {[%emt 00:02:33]} 28. Nxc5
{[%clk 00:03:34]} {[%emt 00:00:42]} Rd6 {[%clk 00:03:31]} {[%emt 00:00:09]} 29.
Ne5 {[%clk 00:03:23]} {[%emt 00:00:16]} fxg2 {[%clk 00:01:42]} {[%emt
00:01:54]} 30. Nxg4 {[%clk 00:02:56]} {[%emt 00:00:32]} Nxg4 {[%clk 00:01:43]}
{[%emt 00:00:04]} 31. Rxg2 {[%clk 00:02:54]} {[%emt 00:00:07]} Nf6 {[%clk
00:01:25]} {[%emt 00:00:23]} 32. Ne6 {[%clk 00:02:48]} {[%emt 00:00:12]} Rf7
{[%clk 00:01:20]} {[%emt 00:00:09]} 33. c5 {[%clk 00:02:41]} {[%emt 00:00:12]}
Ra6 {[%clk 00:01:20]} {[%emt 00:00:04]} 34. c6 {[%clk 00:02:16]} {[%emt
00:00:31]} Nd5 {[%clk 00:00:42]} {[%emt 00:00:44]} 35. Rd2 {[%clk 00:01:28]}
{[%emt 00:00:53]} Ra5 {[%clk 00:00:21]} {[%emt 00:00:26]} 36. c7 {[%clk
00:01:31]} {[%emt 00:00:02]} Nxc7 {[%clk 00:00:18]} {[%emt 00:00:07]} 37. Rd8+
{[%clk 00:01:33]} {[%emt 00:00:03]} 1-0

[Event "MČR juniorů a juniorek v rapid šachu 2023"]
[Site "Czech Republic"]
[Date "2023.09.24"]
[Round "9.7"]
[White "Dobsa, Emma"]
[Black "Hlavina, Matous"]
[Result "0-1"]
[TimeControl "20 min + 5 sec per move"]
[WhiteFideId "23709391"]
[BlackFideId "386650"]
[WhiteElo "1480"]
[BlackElo "2005"]

1. e4 {[%clk 00:20:08]} {[%emt 00:00:02]} e6 {[%clk 00:20:08]} {[%emt
00:00:03]} 2. d4 {[%clk 00:20:12]} d5 {[%clk 00:20:12]} 3. Bd3 {[%clk
00:20:16]} c5 {[%clk 00:20:15]} {[%emt 00:00:02]} 4. exd5 {[%clk 00:20:20]}
exd5 {[%clk 00:20:19]} {[%emt 00:00:01]} 5. dxc5 {[%clk 00:20:24]} {[%emt
00:00:02]} Bxc5 {[%clk 00:20:21]} {[%emt 00:00:02]} 6. Nf3 {[%clk 00:20:27]}
{[%emt 00:00:02]} Nf6 {[%clk 00:20:23]} {[%emt 00:00:02]} 7. O-O {[%clk
00:20:30]} {[%emt 00:00:03]} O-O {[%clk 00:20:26]} {[%emt 00:00:02]} 8. Bg5
{[%clk 00:20:34]} {[%emt 00:00:01]} Bg4 {[%clk 00:20:20]} {[%emt 00:00:11]} 9.
Nc3 {[%clk 00:19:46]} {[%emt 00:00:53]} Nc6 {[%clk 00:19:59]} {[%emt 00:00:26]}
10. Bxf6 {[%clk 00:18:57]} {[%emt 00:00:53]} Qxf6 {[%clk 00:19:58]} {[%emt
00:00:07]} 11. Nxd5 {[%clk 00:19:01]} {[%emt 00:00:01]} Qxb2 {[%clk 00:18:53]}
{[%emt 00:01:10]} 12. Bxh7+ {[%clk 00:17:17]} {[%emt 00:01:49]} Kh8 {[%clk
00:18:57]} 13. Be4 {[%clk 00:15:07]} {[%emt 00:02:14]} f5 {[%clk 00:17:01]}
{[%emt 00:02:02]} 14. Bd3 {[%clk 00:14:37]} {[%emt 00:00:35]} Rad8 {[%clk
00:16:33]} {[%emt 00:00:33]} 15. Nf4 {[%clk 00:12:57]} {[%emt 00:01:45]} Ne5
{[%clk 00:13:12]} {[%emt 00:03:26]} 16. Ne6 {[%clk 00:09:42]} {[%emt 00:03:20]}
Qb6 {[%clk 00:11:21]} {[%emt 00:01:57]} 17. Nxf8 {[%clk 00:08:55]} {[%emt
00:00:51]} Bxf3 {[%clk 00:07:58]} {[%emt 00:03:28]} 18. gxf3 {[%clk 00:08:39]}
{[%emt 00:00:21]} Rxf8 {[%clk 00:07:59]} {[%emt 00:00:04]} 19. Qe2 {[%clk
00:07:08]} {[%emt 00:01:36]} Qh6 {[%clk 00:06:43]} {[%emt 00:01:21]} 20. Rfd1
{[%clk 00:03:18]} {[%emt 00:03:55]} Ng6 {[%clk 00:06:24]} {[%emt 00:00:23]} 21.
Qe6 {[%clk 00:01:24]} {[%emt 00:01:59]} Qg5+ {[%clk 00:06:11]} {[%emt
00:00:18]} 22. Kf1 {[%clk 00:01:20]} {[%emt 00:00:09]} Nf4 {[%clk 00:06:10]}
{[%emt 00:00:07]} 23. Qc4 {[%clk 00:01:11]} {[%emt 00:00:14]} Qg2+ {[%clk
00:06:12]} {[%emt 00:00:02]} 0-1